[Event "*** Titled Tuesday Blitz"]
[Site "Chess.com"]
[Date "2020.04.28"]
[Round "2"]
[White "Arjun2002"]
[Black "NiranjanNavalgund"]
[Result "1/2-1/2"]
[WhiteElo "2685"]
[BlackElo "2463"]
[TimeControl "180+1"]
[EndTime "10:18:33 PDT"]
[Termination "Game drawn by repetition"]

1. e4 {[%clk 0:03:00.9]} 1... c5 {[%clk 0:03:00.2]} 2. Nf3 {[%clk 0:03:00.6]}
2... Nc6 {[%clk 0:03:00.6]} 3. d4 {[%clk 0:03:00]} 3... cxd4 {[%clk 0:03:01.5]}
4. Nxd4 {[%clk 0:03:00.8]} 4... g6 {[%clk 0:03:01.9]} 5. c4 {[%clk 0:03:00]}
5... Nf6 {[%clk 0:03:01.2]} 6. Nc3 {[%clk 0:02:59.4]} 6... Nxd4 {[%clk
0:03:00.6]} 7. Qxd4 {[%clk 0:02:57.9]} 7... d6 {[%clk 0:03:01.5]} 8. f3 {[%clk
0:02:54.4]} 8... Bg7 {[%clk 0:03:01.6]} 9. Be3 {[%clk 0:02:54.1]} 9... O-O
{[%clk 0:03:02]} 10. Qd2 {[%clk 0:02:53.1]} 10... a5 {[%clk 0:03:02.6]} 11. Na4
{[%clk 0:02:52.6]} 11... Nd7 {[%clk 0:02:50]} 12. Be2 {[%clk 0:02:42]} 12... b6
{[%clk 0:02:40]} 13. O-O {[%clk 0:02:18]} 13... Nc5 {[%clk 0:02:40.2]} 14. Nc3
{[%clk 0:02:09.1]} 14... a4 {[%clk 0:02:40.1]} 15. Rac1 {[%clk 0:02:07.1]} 15...
a3 {[%clk 0:02:38.8]} 16. b3 {[%clk 0:02:06.2]} 16... Bb7 {[%clk 0:02:35.7]} 17.
Rfd1 {[%clk 0:02:04.3]} 17... h5 {[%clk 0:02:28.4]} 18. Bd4 {[%clk 0:01:57.4]}
18... Bxd4+ {[%clk 0:02:20.9]} 19. Qxd4 {[%clk 0:01:57.2]} 19... Kh7 {[%clk
0:02:20]} 20. Rd2 {[%clk 0:01:50.9]} 20... Qd7 {[%clk 0:02:01.6]} 21. Rcd1
{[%clk 0:01:43.8]} 21... Rfd8 {[%clk 0:01:54.3]} 22. Nb5 {[%clk 0:01:33.2]}
22... f6 {[%clk 0:01:47.1]} 23. Qe3 {[%clk 0:01:30.6]} 23... Bc6 {[%clk
0:01:39.6]} 24. Nd4 {[%clk 0:01:28.9]} 24... Bb7 {[%clk 0:01:39.9]} 25. Nc2
{[%clk 0:01:27.2]} 25... Ne6 {[%clk 0:01:25.5]} 26. Qxb6 {[%clk 0:01:18.3]}
26... Nf4 {[%clk 0:01:16.5]} 27. Qe3 {[%clk 0:01:13.4]} 27... g5 {[%clk
0:01:14.6]} 28. Bf1 {[%clk 0:01:12.1]} 28... h4 {[%clk 0:01:10.4]} 29. b4 {[%clk
0:00:50.5]} 29... Qa4 {[%clk 0:01:05]} 30. c5 {[%clk 0:00:42]} 30... d5 {[%clk
0:00:59.4]} 31. exd5 {[%clk 0:00:41.2]} 31... Nxd5 {[%clk 0:00:59.1]} 32. Qe4+
{[%clk 0:00:25.3]} 32... Kg7 {[%clk 0:00:57.9]} 33. Rxd5 {[%clk 0:00:23.9]}
33... Bxd5 {[%clk 0:00:56]} 34. Rxd5 {[%clk 0:00:23.7]} 34... Rxd5 {[%clk
0:00:53.3]} 35. Qxd5 {[%clk 0:00:23.9]} 35... Qxc2 {[%clk 0:00:52.7]} 36. Qxa8
{[%clk 0:00:23.8]} 36... Qxa2 {[%clk 0:00:49.4]} 37. Qa7 {[%clk 0:00:21]} 37...
Kf7 {[%clk 0:00:46]} 38. Qa6 {[%clk 0:00:18.9]} 38... Qb2 {[%clk 0:00:45.6]} 39.
Bc4+ {[%clk 0:00:17.4]} 39... Kg7 {[%clk 0:00:45.1]} 40. Qe6 {[%clk 0:00:17.1]}
40... Qd4+ {[%clk 0:00:41.9]} 41. Kf1 {[%clk 0:00:16.7]} 41... Qd1+ {[%clk
0:00:41.6]} 42. Kf2 {[%clk 0:00:16.8]} 42... Qd4+ {[%clk 0:00:41.8]} 43. Ke2
{[%clk 0:00:16.4]} 43... Qb2+ {[%clk 0:00:40.6]} 44. Kd3 {[%clk 0:00:15.8]}
44... Qb1+ {[%clk 0:00:39.4]} 45. Kd4 {[%clk 0:00:13.7]} 45... Qb2+ {[%clk
0:00:39.5]} 46. Kd5 {[%clk 0:00:11.8]} 46... a2 {[%clk 0:00:29.5]} 47. Qxe7+
{[%clk 0:00:11.7]} 47... Kh6 {[%clk 0:00:26.6]} 48. Qf8+ {[%clk 0:00:10.8]}
48... Kh5 {[%clk 0:00:21.1]} 49. Qf7+ {[%clk 0:00:08.9]} 49... Kh6 {[%clk
0:00:21]} 50. Qf8+ {[%clk 0:00:09.1]} 50... Kh5 {[%clk 0:00:21.1]} 51. Qh8+
{[%clk 0:00:09.2]} 51... Kg6 {[%clk 0:00:20.6]} 52. Qg8+ {[%clk 0:00:09.3]}
52... Kh6 {[%clk 0:00:20.2]} 53. Qf8+ {[%clk 0:00:09]} 1/2-1/2

[Event "*** Titled Tuesday Blitz"]
[Site "Chess.com"]
[Date "2020.04.28"]
[Round "2"]
[White "otrov-11"]
[Black "mirceaparligras"]
[Result "0-1"]
[WhiteElo "2406"]
[BlackElo "2672"]
[TimeControl "180+1"]
[EndTime "10:18:33 PDT"]
[Termination "mirceaparligras won on time"]

1. Nf3 {[%clk 0:03:00.9]} 1... d5 {[%clk 0:02:59.3]} 2. c4 {[%clk 0:03:01.1]}
2... d4 {[%clk 0:02:58.8]} 3. e3 {[%clk 0:03:01.4]} 3... c5 {[%clk 0:02:58.5]}
4. exd4 {[%clk 0:03:01.9]} 4... cxd4 {[%clk 0:02:58.8]} 5. d3 {[%clk 0:03:02.8]}
5... Nc6 {[%clk 0:02:58.3]} 6. g3 {[%clk 0:03:03.1]} 6... e5 {[%clk 0:02:56.6]}
7. Bg2 {[%clk 0:03:03.2]} 7... Nf6 {[%clk 0:02:56.6]} 8. O-O {[%clk 0:03:03.2]}
8... Bd6 {[%clk 0:02:57]} 9. Bg5 {[%clk 0:02:57.6]} 9... O-O {[%clk 0:02:54.6]}
10. Nbd2 {[%clk 0:02:57.6]} 10... h6 {[%clk 0:02:51.8]} 11. Bxf6 {[%clk
0:02:57.6]} 11... Qxf6 {[%clk 0:02:52.4]} 12. Ne4 {[%clk 0:02:58.1]} 12... Qe7
{[%clk 0:02:50.7]} 13. Nxd6 {[%clk 0:02:59]} 13... Qxd6 {[%clk 0:02:50.6]} 14.
Nd2 {[%clk 0:02:38.2]} 14... Bf5 {[%clk 0:02:48.2]} 15. Ne4 {[%clk 0:02:32]}
15... Qc7 {[%clk 0:02:47.8]} 16. f4 {[%clk 0:02:26.8]} 16... a5 {[%clk
0:02:29.7]} 17. fxe5 {[%clk 0:02:08.2]} 17... Qxe5 {[%clk 0:02:29.5]} 18. Qh5
{[%clk 0:01:51]} 18... Bg6 {[%clk 0:02:17.1]} 19. Qxe5 {[%clk 0:01:51.9]} 19...
Nxe5 {[%clk 0:02:17.9]} 20. Rad1 {[%clk 0:01:30.6]} 20... b6 {[%clk 0:01:58.5]}
21. Rfe1 {[%clk 0:01:16.3]} 21... Ng4 {[%clk 0:01:44.3]} 22. Bf3 {[%clk
0:00:55.2]} 22... Ne3 {[%clk 0:01:41.9]} 23. Rc1 {[%clk 0:00:55.5]} 23... Rac8
{[%clk 0:01:31.9]} 24. Nf2 {[%clk 0:00:55.2]} 24... Rfe8 {[%clk 0:01:28.7]} 25.
Be4 {[%clk 0:00:54.4]} 25... Bxe4 {[%clk 0:01:22.5]} 26. Nxe4 {[%clk 0:00:55.3]}
26... Rc6 {[%clk 0:01:21]} 27. b3 {[%clk 0:00:46.5]} 27... f5 {[%clk 0:01:19.8]}
28. Nd2 {[%clk 0:00:43.4]} 28... Kf7 {[%clk 0:01:11.1]} 29. Nf3 {[%clk
0:00:43.4]} 29... Rd6 {[%clk 0:01:01.4]} 30. Re2 {[%clk 0:00:42.8]} 30... g5
{[%clk 0:00:57.7]} 31. Rce1 {[%clk 0:00:42.4]} 31... f4 {[%clk 0:00:49.9]} 32.
Rf2 {[%clk 0:00:42.1]} 32... Ng4 {[%clk 0:00:41.7]} 33. Rxe8 {[%clk 0:00:39.8]}
33... Nxf2 {[%clk 0:00:38]} 34. Re2 {[%clk 0:00:24.7]} 34... Nxd3 {[%clk
0:00:37.5]} 35. Rd2 {[%clk 0:00:24.9]} 35... Nb4 {[%clk 0:00:30]} 36. gxf4
{[%clk 0:00:17.7]} 36... gxf4 {[%clk 0:00:28.8]} 37. Rxd4 {[%clk 0:00:13.2]}
37... Rxd4 {[%clk 0:00:28.3]} 38. Nxd4 {[%clk 0:00:14.1]} 38... Nxa2 {[%clk
0:00:29]} 39. Ne2 {[%clk 0:00:08.9]} 39... f3 {[%clk 0:00:23.6]} 40. Nd4 {[%clk
0:00:09]} 40... Kf6 {[%clk 0:00:20.6]} 41. Kf2 {[%clk 0:00:09.2]} 41... Ke5
{[%clk 0:00:21.2]} 42. Nxf3+ {[%clk 0:00:09.3]} 42... Ke4 {[%clk 0:00:21.2]} 43.
Ke2 {[%clk 0:00:08.6]} 43... Nc1+ {[%clk 0:00:20.7]} 44. Kf2 {[%clk 0:00:06.2]}
44... Nxb3 {[%clk 0:00:21.3]} 45. h4 {[%clk 0:00:05]} 45... a4 {[%clk
0:00:21.4]} 46. Ne1 {[%clk 0:00:00.8]} 46... a3 {[%clk 0:00:21.5]} 0-1

[Event "*** Titled Tuesday Blitz"]
[Site "Chess.com"]
[Date "2020.04.28"]
[Round "2"]
[White "NotFischer"]
[Black "Rodalquilar"]
[Result "0-1"]
[WhiteElo "2150"]
[BlackElo "2607"]
[TimeControl "180+1"]
[EndTime "10:18:33 PDT"]
[Termination "Rodalquilar won on time"]

1. Nf3 {[%clk 0:03:00.8]} 1... d5 {[%clk 0:02:59.6]} 2. g3 {[%clk 0:03:01.2]}
2... Nf6 {[%clk 0:03:00]} 3. Bg2 {[%clk 0:03:01.4]} 3... e6 {[%clk 0:03:00.6]}
4. d4 {[%clk 0:03:01.4]} 4... Be7 {[%clk 0:02:59.8]} 5. O-O {[%clk 0:03:01]}
5... O-O {[%clk 0:03:00]} 6. c4 {[%clk 0:03:01.1]} 6... dxc4 {[%clk 0:03:00.9]}
7. Nbd2 {[%clk 0:02:59.6]} 7... b5 {[%clk 0:02:48.8]} 8. a4 {[%clk 0:02:57.2]}
8... c6 {[%clk 0:02:47.1]} 9. axb5 {[%clk 0:02:52.3]} 9... cxb5 {[%clk
0:02:47.1]} 10. Ne5 {[%clk 0:02:39.3]} 10... Nd5 {[%clk 0:02:40.5]} 11. Qc2
{[%clk 0:02:30.4]} 11... Bb7 {[%clk 0:02:35.6]} 12. e4 {[%clk 0:02:15.2]} 12...
Nb4 {[%clk 0:02:26.1]} 13. Qc3 {[%clk 0:02:15.2]} 13... N8c6 {[%clk 0:02:26.5]}
14. Ndf3 {[%clk 0:02:08.9]} 14... a5 {[%clk 0:01:43.4]} 15. Rd1 {[%clk
0:01:52.2]} 15... Qc7 {[%clk 0:01:30.5]} 16. Bf4 {[%clk 0:01:50.9]} 16... Bd6
{[%clk 0:01:30.9]} 17. Nxc6 {[%clk 0:01:23.9]} 17... Bxc6 {[%clk 0:01:27.8]} 18.
Bxd6 {[%clk 0:01:22.6]} 18... Qxd6 {[%clk 0:01:28.7]} 19. Ne5 {[%clk 0:01:16.8]}
19... Bb7 {[%clk 0:01:25.4]} 20. b3 {[%clk 0:01:08.8]} 20... cxb3 {[%clk
0:01:20.2]} 21. Qxb3 {[%clk 0:01:08.7]} 21... Rfc8 {[%clk 0:01:13.3]} 22. Rac1
{[%clk 0:01:00.8]} 22... Rxc1 {[%clk 0:01:06.1]} 23. Rxc1 {[%clk 0:01:00.6]}
23... Qxd4 {[%clk 0:00:44.6]} 24. Nxf7 {[%clk 0:01:00.7]} 24... Nd3 {[%clk
0:00:45.2]} 25. Qxe6 {[%clk 0:00:52.4]} 25... Qxf2+ {[%clk 0:00:45.3]} 26. Kh1
{[%clk 0:00:49.1]} 26... Qxf7 {[%clk 0:00:46.2]} 27. Qxf7+ {[%clk 0:00:48]}
27... Kxf7 {[%clk 0:00:47.1]} 28. Rc7+ {[%clk 0:00:48.4]} 28... Ke6 {[%clk
0:00:20.4]} 29. Rxb7 {[%clk 0:00:49.3]} 29... b4 {[%clk 0:00:20.6]} 30. e5
{[%clk 0:00:47.1]} 30... Rd8 {[%clk 0:00:16.2]} 31. Ra7 {[%clk 0:00:41]} 31...
Nxe5 {[%clk 0:00:14.1]} 32. Be4 {[%clk 0:00:38.8]} 32... Rd1+ {[%clk 0:00:12.8]}
33. Kg2 {[%clk 0:00:38.8]} 33... Rd2+ {[%clk 0:00:13.4]} 34. Kg1 {[%clk
0:00:37]} 34... Nc4 {[%clk 0:00:13]} 35. Rxg7 {[%clk 0:00:31]} 35... b3 {[%clk
0:00:12.9]} 36. Rxh7 {[%clk 0:00:20.7]} 36... a4 {[%clk 0:00:13]} 37. Ra7 {[%clk
0:00:19.6]} 37... a3 {[%clk 0:00:13.1]} 38. g4 {[%clk 0:00:15.3]} 38... a2
{[%clk 0:00:13.3]} 39. Bf5+ {[%clk 0:00:14.8]} 39... Ke5 {[%clk 0:00:12.9]} 40.
h4 {[%clk 0:00:08.9]} 40... b2 {[%clk 0:00:12.6]} 41. Rxa2 {[%clk 0:00:07.1]}
41... Ne3 {[%clk 0:00:10.8]} 42. Ra5+ {[%clk 0:00:05.7]} 42... Kf4 {[%clk
0:00:10.1]} 43. Bh7 {[%clk 0:00:05.2]} 43... Kg3 {[%clk 0:00:09.6]} 0-1

[Event "*** Titled Tuesday Blitz"]
[Site "Chess.com"]
[Date "2020.04.28"]
[Round "2"]
[White "blitzking1729"]
[Black "Beca95"]
[Result "0-1"]
[WhiteElo "2559"]
[BlackElo "2874"]
[TimeControl "180+1"]
[EndTime "10:18:34 PDT"]
[Termination "Beca95 won by resignation"]

1. d4 {[%clk 0:02:59.9]} 1... Nf6 {[%clk 0:02:59.2]} 2. c4 {[%clk 0:02:59.6]}
2... e6 {[%clk 0:02:59.5]} 3. Nf3 {[%clk 0:02:59.3]} 3... c5 {[%clk 0:02:59.7]}
4. d5 {[%clk 0:02:59.1]} 4... d6 {[%clk 0:03:00.1]} 5. Nc3 {[%clk 0:02:57.7]}
5... exd5 {[%clk 0:03:00.4]} 6. cxd5 {[%clk 0:02:57.7]} 6... g6 {[%clk
0:03:00.8]} 7. Bf4 {[%clk 0:02:57.6]} 7... a6 {[%clk 0:02:54.1]} 8. a4 {[%clk
0:02:51.5]} 8... Bg7 {[%clk 0:02:53.8]} 9. e3 {[%clk 0:02:51.3]} 9... O-O {[%clk
0:02:53.9]} 10. Be2 {[%clk 0:02:51.4]} 10... Ne8 {[%clk 0:02:54.4]} 11. O-O
{[%clk 0:02:50]} 11... Nd7 {[%clk 0:02:55]} 12. Nd2 {[%clk 0:02:47.3]} 12... Ne5
{[%clk 0:02:54.8]} 13. a5 {[%clk 0:02:38.8]} 13... Rb8 {[%clk 0:02:54.1]} 14.
Qb3 {[%clk 0:02:30.1]} 14... b5 {[%clk 0:02:50.7]} 15. axb6 {[%clk 0:02:29.7]}
15... Rxb6 {[%clk 0:02:50.4]} 16. Qa2 {[%clk 0:02:26]} 16... Rb8 {[%clk
0:02:38]} 17. Nc4 {[%clk 0:02:21.1]} 17... Nxc4 {[%clk 0:02:34.3]} 18. Bxc4
{[%clk 0:02:20.4]} 18... Nc7 {[%clk 0:02:34.3]} 19. Rac1 {[%clk 0:02:09.1]}
19... Re8 {[%clk 0:02:32.9]} 20. b3 {[%clk 0:02:01.5]} 20... h5 {[%clk
0:02:26.5]} 21. Rfd1 {[%clk 0:01:51.3]} 21... g5 {[%clk 0:02:24.1]} 22. Bg3
{[%clk 0:01:40.8]} 22... h4 {[%clk 0:02:23.1]} 23. Bxh4 {[%clk 0:01:35.1]} 23...
gxh4 {[%clk 0:02:21.7]} 24. Ne2 {[%clk 0:01:34.9]} 24... Nb5 {[%clk 0:02:17.8]}
25. Qd2 {[%clk 0:01:15.3]} 25... Qg5 {[%clk 0:02:15.2]} 26. Nf4 {[%clk
0:01:11.2]} 26... Bd7 {[%clk 0:01:57.6]} 27. Re1 {[%clk 0:01:00]} 27... Be5
{[%clk 0:01:36.5]} 28. Nd3 {[%clk 0:00:58.6]} 28... Qg7 {[%clk 0:01:30.3]} 29.
Nxe5 {[%clk 0:00:54.8]} 29... Rxe5 {[%clk 0:01:28.9]} 30. f4 {[%clk 0:00:52.8]}
30... Re7 {[%clk 0:01:28]} 31. e4 {[%clk 0:00:50.4]} 31... Nd4 {[%clk
0:01:27.5]} 32. Qf2 {[%clk 0:00:45.8]} 32... Bb5 {[%clk 0:01:26.6]} 33. e5
{[%clk 0:00:45.5]} 33... Bxc4 {[%clk 0:01:24.8]} 34. Rxc4 {[%clk 0:00:45.2]}
34... Rxb3 {[%clk 0:01:19.9]} 35. Kh1 {[%clk 0:00:42.8]} 35... Qg4 {[%clk
0:00:57.9]} 36. Ra4 {[%clk 0:00:27.6]} 36... h3 {[%clk 0:00:31.4]} 37. gxh3
{[%clk 0:00:26.9]} 37... Qf3+ {[%clk 0:00:31.2]} 38. Qg2+ {[%clk 0:00:22]} 38...
Qxg2+ {[%clk 0:00:29.1]} 39. Kxg2 {[%clk 0:00:22.9]} 39... Rb6 {[%clk
0:00:28.7]} 40. Rea1 {[%clk 0:00:21.7]} 40... dxe5 {[%clk 0:00:28.1]} 41. fxe5
{[%clk 0:00:22]} 41... Rxe5 {[%clk 0:00:28.3]} 42. Rxa6 {[%clk 0:00:22.6]} 42...
Rxa6 {[%clk 0:00:28.7]} 43. Rxa6 {[%clk 0:00:22.3]} 43... Rxd5 {[%clk
0:00:29.4]} 44. Ra8+ {[%clk 0:00:22.2]} 44... Kg7 {[%clk 0:00:29.7]} 45. Kf2
{[%clk 0:00:22.5]} 45... Ne6 {[%clk 0:00:28.9]} 46. Rc8 {[%clk 0:00:20.7]} 46...
Rd3 {[%clk 0:00:28.9]} 47. h4 {[%clk 0:00:20.4]} 47... Rc3 {[%clk 0:00:28.7]}
48. h5 {[%clk 0:00:20.2]} 48... Rc2+ {[%clk 0:00:28.9]} 49. Kg3 {[%clk
0:00:20.4]} 49... c4 {[%clk 0:00:29.3]} 50. Kg4 {[%clk 0:00:20.4]} 50... c3
{[%clk 0:00:29.3]} 51. h3 {[%clk 0:00:20.3]} 51... Rc1 {[%clk 0:00:29.2]} 52.
Kh4 {[%clk 0:00:20.3]} 52... c2 {[%clk 0:00:26.9]} 53. Rc4 {[%clk 0:00:19.4]}
53... Nd4 {[%clk 0:00:17.3]} 54. h6+ {[%clk 0:00:16.4]} 54... Kxh6 {[%clk
0:00:15.8]} 55. Rxd4 {[%clk 0:00:16.8]} 55... Rd1 {[%clk 0:00:16.1]} 0-1

[Event "*** Titled Tuesday Blitz"]
[Site "Chess.com"]
[Date "2020.04.28"]
[Round "2"]
[White "Hasangatin_Ramil"]
[Black "Colombiano07"]
[Result "1-0"]
[WhiteElo "2454"]
[BlackElo "2217"]
[TimeControl "180+1"]
[EndTime "10:18:34 PDT"]
[Termination "Hasangatin_Ramil won by resignation"]

1. e4 {[%clk 0:03:00.9]} 1... e6 {[%clk 0:02:59.8]} 2. d3 {[%clk 0:03:00.6]}
2... d5 {[%clk 0:02:59]} 3. Qe2 {[%clk 0:03:00.7]} 3... Nc6 {[%clk 0:02:58.1]}
4. Nf3 {[%clk 0:03:00.4]} 4... dxe4 {[%clk 0:02:53.6]} 5. dxe4 {[%clk
0:02:59.8]} 5... e5 {[%clk 0:02:53.9]} 6. c3 {[%clk 0:02:59.9]} 6... Bc5 {[%clk
0:02:53.2]} 7. g3 {[%clk 0:02:59.1]} 7... Nf6 {[%clk 0:02:52.9]} 8. Bg2 {[%clk
0:02:59.4]} 8... O-O {[%clk 0:02:52.1]} 9. O-O {[%clk 0:02:59.1]} 9... h6 {[%clk
0:02:51.5]} 10. Nbd2 {[%clk 0:02:59]} 10... Be6 {[%clk 0:02:50.8]} 11. Nc4
{[%clk 0:02:58.2]} 11... Bxc4 {[%clk 0:02:31.4]} 12. Qxc4 {[%clk 0:02:57.4]}
12... Bb6 {[%clk 0:02:32.3]} 13. Nh4 {[%clk 0:02:56.5]} 13... Re8 {[%clk
0:02:18.9]} 14. Bf3 {[%clk 0:02:55]} 14... Qd7 {[%clk 0:02:13.1]} 15. Kg2 {[%clk
0:02:54.3]} 15... Qe6 {[%clk 0:02:13.2]} 16. Qxe6 {[%clk 0:02:52.9]} 16... Rxe6
{[%clk 0:02:14.1]} 17. Rd1 {[%clk 0:02:50.1]} 17... Rd8 {[%clk 0:02:12.5]} 18.
Rxd8+ {[%clk 0:02:47.5]} 18... Nxd8 {[%clk 0:02:13.4]} 19. Nf5 {[%clk
0:02:41.2]} 19... Nc6 {[%clk 0:02:04.3]} 20. Bd2 {[%clk 0:02:37.6]} 20... Ne7
{[%clk 0:02:03.9]} 21. Be1 {[%clk 0:02:32.5]} 21... Kh7 {[%clk 0:01:55.1]} 22.
Rd1 {[%clk 0:02:27.7]} 22... g6 {[%clk 0:01:53.5]} 23. Nxe7 {[%clk 0:02:17.9]}
23... Rxe7 {[%clk 0:01:54.4]} 24. Kf1 {[%clk 0:02:16.6]} 24... Kg7 {[%clk
0:01:49.3]} 25. Ke2 {[%clk 0:02:16]} 25... Rd7 {[%clk 0:01:43.7]} 26. Rxd7
{[%clk 0:02:15]} 26... Nxd7 {[%clk 0:01:44.6]} 27. b4 {[%clk 0:02:15.2]} 27...
Nf8 {[%clk 0:01:42.9]} 28. Bg4 {[%clk 0:02:13]} 28... Ne6 {[%clk 0:01:18.2]} 29.
h4 {[%clk 0:01:57.8]} 29... Kf6 {[%clk 0:01:17.1]} 30. h5 {[%clk 0:01:56.6]}
30... g5 {[%clk 0:01:08.7]} 31. Bf5 {[%clk 0:01:54.4]} 31... c5 {[%clk 0:01:03]}
32. a3 {[%clk 0:01:49.9]} 32... cxb4 {[%clk 0:01:02]} 33. axb4 {[%clk
0:01:48.2]} 33... Bd8 {[%clk 0:00:51.5]} 34. f3 {[%clk 0:01:40.6]} 34... Ng7
{[%clk 0:00:48.6]} 35. Bg4 {[%clk 0:01:39.3]} 35... Ne6 {[%clk 0:00:47.4]} 36.
Bf2 {[%clk 0:01:38.4]} 36... b6 {[%clk 0:00:39.9]} 37. Kd3 {[%clk 0:01:37.1]}
37... Ke7 {[%clk 0:00:37.1]} 38. Kc4 {[%clk 0:01:36.6]} 38... Kd6 {[%clk
0:00:35.9]} 39. Bxe6 {[%clk 0:01:26]} 39... fxe6 {[%clk 0:00:30]} 40. Kb5 {[%clk
0:01:25.7]} 40... Kc7 {[%clk 0:00:28.9]} 41. Ka6 {[%clk 0:01:24.6]} 41... Kb8
{[%clk 0:00:28.6]} 42. g4 {[%clk 0:00:34.7]} 42... Be7 {[%clk 0:00:25.9]} 43.
Be1 {[%clk 0:00:34.6]} 43... Bd6 {[%clk 0:00:22.4]} 44. c4 {[%clk 0:00:33.6]}
44... Be7 {[%clk 0:00:21.5]} 45. Bc3 {[%clk 0:00:33]} 45... Bd6 {[%clk
0:00:20.1]} 46. Bb2 {[%clk 0:00:16.9]} 46... Bc7 {[%clk 0:00:19.7]} 47. c5
{[%clk 0:00:13.5]} 47... bxc5 {[%clk 0:00:18.4]} 48. bxc5 {[%clk 0:00:14.4]}
48... Ka8 {[%clk 0:00:14.1]} 49. Bc3 {[%clk 0:00:14]} 49... Kb8 {[%clk
0:00:14.3]} 50. Bb4 {[%clk 0:00:13.2]} 50... Ka8 {[%clk 0:00:13.9]} 51. c6
{[%clk 0:00:13.2]} 1-0

[Event "*** Titled Tuesday Blitz"]
[Site "Chess.com"]
[Date "2020.04.28"]
[Round "2"]
[White "Gvetadze"]
[Black "Bastiandash"]
[Result "0-1"]
[WhiteElo "2349"]
[BlackElo "2009"]
[TimeControl "180+1"]
[EndTime "10:18:34 PDT"]
[Termination "Bastiandash won by checkmate"]

1. Nf3 {[%clk 0:03:00.9]} 1... Nf6 {[%clk 0:03:00]} 2. g3 {[%clk 0:03:01.3]}
2... e6 {[%clk 0:03:00]} 3. Bg2 {[%clk 0:03:01.3]} 3... d5 {[%clk 0:02:34.9]} 4.
O-O {[%clk 0:03:02.2]} 4... Be7 {[%clk 0:02:32.4]} 5. d3 {[%clk 0:03:01.9]} 5...
O-O {[%clk 0:02:30.1]} 6. Nbd2 {[%clk 0:03:02.5]} 6... c5 {[%clk 0:02:22.8]} 7.
e4 {[%clk 0:03:03.4]} 7... Nc6 {[%clk 0:02:21.4]} 8. Re1 {[%clk 0:03:03.3]} 8...
Qc7 {[%clk 0:02:15.1]} 9. Nf1 {[%clk 0:03:01.2]} 9... b6 {[%clk 0:02:12.3]} 10.
e5 {[%clk 0:03:01.5]} 10... Nd7 {[%clk 0:02:11.9]} 11. Bf4 {[%clk 0:03:02]}
11... Qd8 {[%clk 0:02:06.8]} 12. h4 {[%clk 0:03:01.8]} 12... f6 {[%clk
0:02:06.6]} 13. exf6 {[%clk 0:03:00.4]} 13... Nxf6 {[%clk 0:02:07.5]} 14. N1h2
{[%clk 0:03:00]} 14... Bd6 {[%clk 0:02:07.2]} 15. Ne5 {[%clk 0:02:59.7]} 15...
Nxe5 {[%clk 0:02:05.7]} 16. Bxe5 {[%clk 0:02:59.9]} 16... Bxe5 {[%clk
0:02:02.8]} 17. Rxe5 {[%clk 0:03:00.8]} 17... Qd6 {[%clk 0:02:03.4]} 18. Qe2
{[%clk 0:02:58.5]} 18... Re8 {[%clk 0:02:03.5]} 19. h5 {[%clk 0:02:55.3]} 19...
h6 {[%clk 0:02:00.1]} 20. Re1 {[%clk 0:02:52.3]} 20... Bd7 {[%clk 0:01:59]} 21.
Ng4 {[%clk 0:02:51.8]} 21... Nxg4 {[%clk 0:01:31.1]} 22. Qxg4 {[%clk 0:02:52.7]}
22... Re7 {[%clk 0:01:32]} 23. Qg6 {[%clk 0:02:48.3]} 23... Rf8 {[%clk
0:00:57.3]} 24. Bxd5 {[%clk 0:02:45.8]} 24... Rf6 {[%clk 0:00:56.9]} 25. Qg4
{[%clk 0:02:22.7]} 25... exd5 {[%clk 0:00:54.1]} 26. Qe2 {[%clk 0:02:20.6]}
26... Rxe5 {[%clk 0:00:52.9]} 27. Qxe5 {[%clk 0:02:21.5]} 27... Re6 {[%clk
0:00:53.1]} 28. Qxd6 {[%clk 0:02:19.8]} 28... Rxd6 {[%clk 0:00:54]} 29. Re5
{[%clk 0:02:16.7]} 29... Kf7 {[%clk 0:00:49.6]} 30. f4 {[%clk 0:02:16.6]} 30...
Kf6 {[%clk 0:00:45.9]} 31. Kf2 {[%clk 0:02:16.4]} 31... Bc6 {[%clk 0:00:42.7]}
32. Re1 {[%clk 0:02:00.4]} 32... Re6 {[%clk 0:00:41.2]} 33. Ra1 {[%clk
0:01:57.5]} 33... d4 {[%clk 0:00:40.5]} 34. a4 {[%clk 0:01:54.5]} 34... a5
{[%clk 0:00:39.6]} 35. Ra3 {[%clk 0:01:46.7]} 35... Bd5 {[%clk 0:00:30.9]} 36.
c4 {[%clk 0:01:44.5]} 36... Bc6 {[%clk 0:00:24.8]} 37. g4 {[%clk 0:01:40.4]}
37... Ke7 {[%clk 0:00:20.9]} 38. f5 {[%clk 0:01:36.8]} 38... Rd6 {[%clk
0:00:20]} 39. Kg3 {[%clk 0:01:34]} 39... Kf6 {[%clk 0:00:20.2]} 40. Kf4 {[%clk
0:01:34.2]} 40... Rd8 {[%clk 0:00:20.4]} 41. Rb3 {[%clk 0:01:34.4]} 41... Rb8
{[%clk 0:00:20.1]} 42. Ra3 {[%clk 0:01:34.4]} 42... Bd7 {[%clk 0:00:18]} 43. Ra1
{[%clk 0:01:33.8]} 43... Re8 {[%clk 0:00:17.5]} 44. Rg1 {[%clk 0:01:28.4]} 44...
Re3 {[%clk 0:00:17.2]} 45. g5+ {[%clk 0:01:21.3]} 45... hxg5+ {[%clk 0:00:18.1]}
46. Rxg5 {[%clk 0:01:20.6]} 46... Rf3+ {[%clk 0:00:15.8]} 47. Kxf3 {[%clk
0:01:13.6]} 47... Kxg5 {[%clk 0:00:16.2]} 48. f6 {[%clk 0:01:09.7]} 48... Kxf6
{[%clk 0:00:16.3]} 49. Ke4 {[%clk 0:01:09.4]} 49... Bf5+ {[%clk 0:00:16]} 50.
Kd5 {[%clk 0:01:09.6]} 50... Bxd3 {[%clk 0:00:16.3]} 51. Kc6 {[%clk 0:01:10.5]}
51... Bxc4 {[%clk 0:00:16.7]} 52. Kxb6 {[%clk 0:01:11.4]} 52... d3 {[%clk
0:00:17]} 53. Kxa5 {[%clk 0:01:12]} 53... d2 {[%clk 0:00:17.9]} 54. Kb6 {[%clk
0:01:12.9]} 54... d1=Q {[%clk 0:00:17.9]} 55. a5 {[%clk 0:01:13.8]} 55... Qb3+
{[%clk 0:00:17.7]} 56. Ka7 {[%clk 0:01:13.5]} 56... Qxb2 {[%clk 0:00:18.6]} 57.
a6 {[%clk 0:01:13.7]} 57... Bd5 {[%clk 0:00:18.9]} 58. h6 {[%clk 0:01:14]} 58...
Qe5 {[%clk 0:00:16]} 59. Kb6 {[%clk 0:01:11.4]} 59... Qe6+ {[%clk 0:00:14.9]}
60. Kb5 {[%clk 0:01:09.3]} 60... gxh6 {[%clk 0:00:15.7]} 61. a7 {[%clk
0:01:09.4]} 61... Ba8 {[%clk 0:00:16.4]} 62. Ka5 {[%clk 0:01:08.9]} 62... c4
{[%clk 0:00:16.3]} 63. Kb4 {[%clk 0:01:08.4]} 63... Ke5 {[%clk 0:00:16.2]} 64.
Kc3 {[%clk 0:01:09]} 64... Kd5 {[%clk 0:00:16.4]} 65. Kb4 {[%clk 0:01:09.4]}
65... Qb6+ {[%clk 0:00:16.7]} 66. Kc3 {[%clk 0:01:10.3]} 66... Qb3+ {[%clk
0:00:15.8]} 67. Kd2 {[%clk 0:01:10.6]} 67... Kd4 {[%clk 0:00:16.2]} 68. Kc1
{[%clk 0:01:10.9]} 68... Qa2 {[%clk 0:00:14.7]} 69. Kd1 {[%clk 0:01:10.6]} 69...
Kd3 {[%clk 0:00:15.1]} 70. Ke1 {[%clk 0:01:11.1]} 70... Qe2# {[%clk 0:00:14.9]}
0-1